bitfinex/quotes_ETHUSD_20210701
["timestamp","ask_amount","ask_price","bid_price","bid_amount"]
[1625099802956,18.04606,2251.2,2250.3,0.00753009]
[1625099803058,0.08,2251.1,2250.3,0.00753009]
[1625099803258,18.17161359,2251.2,2250.3,0.00753009]
[1625099803510,0.12551564,2251.1,2250.3,0.00753009]
[1625099803607,6.66447,2250.8,2250.3,0.00753009]
[1625099803709,0.02551564,2251.1,2250.3,0.00753009]
[1625099803810,16.88536,2251.2,2250.3,0.00753009]
[1625099804112,0.04,2251.1,2250.3,0.00753009]
[1625099804210,16.88536,2251.2,2250.3,0.00753009]
[1625099805176,17.13702584,2251.2,2250.3,0.00753009]
[1625099805478,6.66399,2251.0,2250.3,0.00753009]
[1625099808399,6.66399,2251.0,2250.3,6.67116009]
[1625099808601,8.25166584,2251.2,2250.4,4.42277392]
[1625099808703,8.25166584,2251.2,2250.3,0.00753009]
[1625099808704,0.25166584,2251.2,2250.3,0.00753009]
[1625099808803,0.27821811,2251.3,2250.3,0.00753009]
[1625099808958,0.27821811,2251.3,2250.8,20.0]
[1625099809056,0.27821811,2251.3,2250.9,4.50984351]
[1625099809155,0.27821811,2251.3,2251.0,25.01]
[1625099809255,0.37763099,2251.4,2251.1,9.58015648]
[1625099809360,0.00601208,2251.5,2251.1,4.68624154]
[1625099809452,0.00601208,2251.5,2251.2,0.14]
[1625099809661,0.25165617,2251.6,2251.2,0.14]
[1625099810054,0.25165617,2251.6,2251.3,5.01]
[1625099810188,0.25165617,2251.6,2251.3,9.4937306]
[1625099810284,0.25165617,2251.6,2251.3,13.7150306]
[1625099810386,0.25165617,2251.6,2251.4,5.17]
[1625099810493,10.6736,2252.2,2251.5,9.39511232]
[1625099810586,10.6736,2252.2,2251.5,11.04472232]
[1625099810686,10.6736,2252.2,2251.4,3.21442515]
[1625099810885,10.6736,2252.2,2251.4,0.9082]
[1625099811286,10.6736,2252.2,2251.3,4.6055268]
[1625099811385,10.6736,2252.2,2251.3,0.14601208]
[1625099811787,6.66099,2252.1,2251.3,0.14601208]
[1625099812410,10.6736,2252.2,2251.3,0.14601208]
[1625099812902,17.5236,2252.2,2251.3,0.14601208]
[1625099813457,6.66132,2252.0,2251.3,0.14601208]
[1625099813657,17.5236,2252.2,2251.3,0.14601208]
[1625099814208,17.5236,2252.2,2251.3,0.00601208]
[1625099814309,20.8545759,2252.2,2251.3,0.00601208]
[1625099814409,5.01,2252.0,2251.3,0.00601208]
[1625099814656,5.01,2252.0,2251.1,0.00709064]
[1625099814757,6.86157,2251.9,2251.1,0.00709064]
[1625099814855,6.86777348,2251.9,2251.1,0.00709064]
[1625099814955,0.06,2251.8,2251.1,0.00709064]
[1625099815060,0.00601208,2251.5,2251.1,0.00709064]
[1625099815757,5.01601208,2251.5,2251.1,0.00709064]
[1625099815958,6.66341,2251.3,2251.1,0.00709064]
[1625099816362,5.01,2251.2,2251.1,0.00709064]
[1625099817202,5.13,2251.2,2251.1,0.00709064]
[1625099819838,0.12,2251.2,2251.1,0.00709064]
[1625099819936,6.66341,2251.3,2251.1,0.00709064]
[1625099820539,3.33797128,2251.5,2251.1,0.00709064]
[1625099821042,0.00601208,2251.5,2251.1,0.00709064]
[1625099821139,0.00601208,2251.5,2251.1,4.02669064]
[1625099822106,6.66866208,2251.5,2251.1,4.02669064]
[1625099823410,10.00014208,2251.5,2251.1,4.02669064]
[1625099823513,3.33749208,2251.5,2251.1,4.02669064]
[1625099823654,11.33749208,2251.5,2251.1,4.02669064]
[1625099823852,8.0,2251.4,2251.1,4.02669064]
[1625099824353,11.3314779,2251.4,2251.1,4.02669064]
[1625099824454,6.66289,2251.3,2251.1,4.02669064]
[1625099827410,14.66289,2251.3,2251.1,4.02669064]
[1625099828160,6.66289,2251.3,2251.1,4.02669064]
[1625099829863,14.66289,2251.3,2251.2,0.03229677]
[1625099829963,6.66289,2251.3,2250.9,0.00610704]
[1625099830067,6.74289,2251.3,2250.9,0.00610704]
[1625099830164,6.66289,2251.3,2250.9,0.00610704]
[1625099830264,6.66998064,2251.3,2250.9,0.00610704]
[1625099831018,6.66998064,2251.3,2250.9,0.90361469]
[1625099831221,6.66998064,2251.3,2250.9,0.00610704]
[1625099835562,0.18,2251.2,2250.9,0.00610704]
[1625099836264,3.33211,2251.1,2250.9,0.00610704]
[1625099836514,0.16,2251.0,2250.9,0.00610704]
[1625099837805,10.96,2251.0,2250.9,0.00610704]
[1625099837906,20.2167,2251.0,2250.9,0.00610704]
[1625099838204,5.7,2250.9,2250.5,5.468e-05]
[1625099838304,10.71,2250.9,2250.5,5.468e-05]
[1625099838404,5.01,2250.8,2250.5,5.468e-05]
[1625099838503,5.21,2250.8,2250.5,5.468e-05]
[1625099838604,8.5430057,2250.7,2250.5,5.468e-05]
[1625099838808,4.4774057,2250.7,2250.5,5.468e-05]
[1625099838902,5.01,2250.6,2250.5,5.468e-05]
[1625099839104,13.01,2250.6,2250.5,5.468e-05]
[1625099839208,13.09,2250.6,2250.5,5.468e-05]
[1625099839307,0.08,2250.6,2250.5,5.468e-05]
[1625099839412,7.61042,2250.7,2250.5,5.468e-05]
[1625099840014,18.9430194,2250.7,2250.5,5.468e-05]
[1625099840214,0.04,2250.6,2250.5,5.468e-05]
[1625099840519,9.2849,2250.6,2250.5,5.468e-05]
[1625099841957,4.2749,2250.6,2250.1,0.00012152]
[1625099842058,3.333106,2250.4,2250.1,0.00012152]
[1625099842863,3.34054009,2250.5,2250.1,0.00012152]
[1625099842963,0.00753009,2250.5,2250.1,0.00012152]
[1625099843065,6.67209009,2250.5,2250.1,9.10320089]
[1625099843162,6.67209009,2250.5,2250.3,5.01]
[1625099843262,0.00753009,2250.5,2250.3,5.01]
[1625099843566,0.00753009,2250.5,2250.1,9.10320089]
[1625099844118,0.00644735,2250.7,2250.1,9.10320089]
[1625099844119,6.66395,2250.7,2250.1,9.10320089]
[1625099844820,6.66395,2250.7,2250.1,4.50012152]
[1625099845022,0.16,2250.6,2250.5,0.00644735]
[1625099845323,0.16,2250.6,2250.3,0.00753009]
[1625099845625,3.3329282,2250.6,2250.3,0.00753009]
[1625099845724,0.00644735,2250.7,2250.3,0.00753009]
[1625099845825,0.00644735,2250.7,2250.3,4.17743009]
[1625099846020,0.00644735,2250.7,2250.5,5.01]
[1625099846293,0.00644735,2250.7,2250.4,1.4955]
[1625099846390,0.00644735,2250.7,2250.3,0.00753009]
[1625099847842,6.67100735,2250.7,2250.3,0.00753009]
[1625099849022,0.00644735,2250.7,2250.3,0.00753009]
[1625099849974,6.67145735,2250.7,2250.3,0.00753009]
[1625099851868,0.00644735,2250.7,2250.3,0.00753009]
[1625099852365,0.00644735,2250.7,2250.3,6.67145009]
[1625099852569,0.00644735,2250.7,2250.3,0.00753009]
[1625099853517,6.66488,2250.5,2250.3,0.00753009]
[1625099853724,0.00644735,2250.7,2250.3,0.00753009]
[1625099855459,0.00644735,2250.7,2250.3,3.10733009]
[1625099855659,0.00644735,2250.7,2250.3,9.77071009]
[1625099855758,0.00644735,2250.7,2250.3,3.10733009]
[1625099858922,0.00644735,2250.7,2250.5,5.01]
[1625099859124,0.00644735,2250.7,2250.6,4.34864065]
[1625099859324,0.00644735,2250.7,2250.5,5.01]
[1625099859525,0.00644735,2250.7,2250.6,5.01]
[1625099859764,0.00644735,2250.7,2250.4,0.1]
[1625099859865,0.00644735,2250.7,2250.3,0.00753009]
[1625099861467,0.06,2250.6,2250.3,0.00753009]
[1625099861571,0.00644735,2250.7,2250.3,0.00753009]
[1625099862113,3.29705764,2250.9,2250.3,0.00753009]
[1625099862666,6.66512,2250.5,2250.3,0.00753009]
[1625099863164,10.98272,2250.5,2250.3,0.00753009]
[1625099863365,10.98272,2250.5,2250.3,0.01397744]
[1625099863967,4.3176,2250.5,2250.3,0.01397744]
[1625099864218,3.332744,2250.8,2250.3,0.01397744]
[1625099864415,0.06,2250.7,2250.3,0.01397744]
[1625099865102,0.00790029,2250.9,2250.3,0.01397744]
[1625099865404,0.00790029,2250.9,2250.3,5.02397744]
[1625099865504,0.00790029,2250.9,2250.3,0.01397744]
[1625099865805,0.06,2250.8,2250.3,0.01397744]
[1625099866152,6.66508,2250.6,2250.3,0.01397744]
[1625099867224,9.9979202,2250.6,2250.3,0.01397744]
[1625099867423,3.3328402,2250.6,2250.3,0.01397744]
[1625099867527,0.14,2250.5,2250.3,0.01397744]
[1625099867628,3.3328402,2250.6,2250.3,0.01397744]
[1625099868026,0.00790029,2250.9,2250.3,0.01397744]
[1625099868330,0.00790029,2250.9,2250.3,5.02397744]
[1625099868661,0.00790029,2250.9,2250.3,0.01397744]
[1625099868859,0.00790029,2250.9,2250.3,5.02397744]
[1625099869263,0.00790029,2250.9,2250.3,9.95177744]
[1625099869463,0.00790029,2250.9,2250.6,5.01]
[1625099869664,0.00790029,2250.9,2250.5,5.9706]
[1625099869768,0.00790029,2250.9,2250.5,0.9606]
[1625099869863,0.00790029,2250.9,2250.3,4.94177744]
[1625099870364,6.67203029,2250.9,2250.3,4.94177744]
[1625099871122,6.67203029,2250.9,2250.3,0.01397744]
[1625099871427,0.14,2250.8,2250.3,0.01397744]
[1625099871525,6.66522,2250.6,2250.3,0.01397744]
[1625099872827,8.88696,2250.8,2250.3,0.01397744]
[1625099872925,0.00790029,2250.9,2250.3,0.01397744]
[1625099873872,10.00434839,2250.9,2250.3,0.01397744]
[1625099873970,3.34029839,2250.9,2250.3,0.01397744]
[1625099874070,0.14,2250.8,2250.3,0.01397744]
[1625099874468,3.3327917,2250.6,2250.3,0.01397744]
[1625099874673,0.04,2250.5,2250.3,0.01397744]
[1625099874869,3.3327917,2250.6,2250.3,0.01397744]
[1625099875656,6.66552,2250.5,2250.3,0.01397744]
[1625099875762,8.00790029,2250.9,2250.3,0.01397744]
[1625099876059,0.00790029,2250.9,2250.3,5.02397744]
[1625099876156,0.00790029,2250.9,2250.3,0.01397744]
[1625099877262,0.00790029,2250.9,2250.3,4.41541627]
[1625099877364,0.00790029,2250.9,2250.3,0.01397744]
[1625099877465,0.00790029,2250.9,2250.3,11.40873086]
[1625099877563,0.00790029,2250.9,2250.5,5.01]
[1625099878716,0.00790029,2250.9,2250.4,0.04]
[1625099878818,0.00790029,2250.9,2250.3,4.74488086]
[1625099879419,0.00790029,2250.9,2250.5,6.66326]
[1625099880332,0.00790029,2250.9,2250.8,5.01]
[1625099881331,0.00790029,2250.9,2250.7,5.01]
[1625099881833,0.00790029,2250.9,2250.6,5.01]
[1625099882034,0.00790029,2250.9,2250.4,5.15]
[1625099882169,0.00790029,2250.9,2250.4,0.14]
[1625099882271,0.00790029,2250.9,2250.4,5.15]
[1625099882374,0.00790029,2250.9,2250.5,5.01]
[1625099882473,0.00790029,2250.9,2250.4,0.14]
[1625099882685,0.00790029,2250.9,2250.3,0.01397744]
[1625099882773,0.16,2250.8,2250.3,0.01397744]
[1625099882972,0.00790029,2250.9,2250.3,0.01397744]
[1625099883472,6.66549,2250.6,2250.3,0.01397744]
[1625099883674,10.29179,2250.6,2250.3,0.01397744]
[1625099884277,6.6652332,2250.5,2250.3,0.01397744]
[1625099884718,6.6649,2250.4,2250.3,0.01397744]
[1625099889016,6.6649,2250.4,2250.3,0.09397744]
[1625099889216,6.6649,2250.4,2250.3,0.01397744]
[1625099889818,6.6649,2250.4,2250.3,5.02397744]
[1625099890067,6.6649,2250.4,2250.3,0.01397744]
[1625099890170,6.6649,2250.4,2250.3,5.02397744]
[1625099890271,6.6649,2250.4,2250.3,0.01397744]
[1625099890366,6.6649,2250.4,2250.3,0.09397744]
[1625099890570,6.6649,2250.4,2250.3,0.01397744]
[1625099890821,3.3327032,2250.5,2250.3,0.01397744]
[1625099890919,0.00790029,2250.9,2250.3,0.01397744]
[1625099891268,0.00790029,2250.9,2250.3,5.02397744]
[1625099891370,0.00790029,2250.9,2250.3,0.01397744]
[1625099891572,3.34019029,2250.9,2250.3,0.01397744]
[1625099891671,0.04,2250.8,2250.3,0.01397744]
[1625099892072,9.99744,2250.6,2250.3,0.01397744]
[1625099892170,3.33245,2250.6,2250.3,0.01397744]
[1625099892269,3.3327032,2250.5,2250.3,0.01397744]
[1625099892470,3.3327032,2250.5,2250.3,5.02397744]
[1625099892571,3.3327032,2250.5,2250.3,0.01397744]
[1625099893279,6.5638032,2250.5,2250.3,0.01397744]
[1625099893416,6.66525,2250.4,2250.3,0.01397744]
[1625099893615,6.70525,2250.4,2250.3,0.01397744]
[1625099895080,0.04,2250.4,2250.3,0.01397744]
[1625099896432,6.70525,2250.4,2250.3,0.01397744]
[1625099896529,6.70525,2250.4,2250.3,0.04628611]
[1625099897132,6.70525,2250.4,2250.3,8.611e-05]
[1625099899758,6.66525,2250.4,2250.3,8.611e-05]
[1625099901682,11.57165,2250.4,2250.3,8.611e-05]
[1625099901884,11.77165,2250.4,2250.3,8.611e-05]
[1625099902932,16.2169883,2250.4,2250.1,0.00012152]
[1625099903030,0.2,2250.2,2250.1,0.00012152]
[1625099903387,3.33394,2250.3,2250.1,0.00012152]
[1625099903485,6.66525,2250.4,2250.1,0.00012152]
[1625099903584,3.34023329,2250.5,2250.1,0.00012152]
[1625099903682,6.66474,2250.4,2250.1,0.00012152]
[1625099903783,6.61474,2250.4,2250.1,0.00012152]
[1625099907378,0.00753009,2250.5,2250.1,0.00012152]
[1625099907581,0.00753009,2250.5,2250.2,0.08]
[1625099907677,0.00753009,2250.5,2250.2,3.6587]
[1625099907779,0.00753009,2250.5,2250.4,5.01]
[1625099908579,0.00753009,2250.5,2250.2,4.38055666]
[1625099908681,0.00753009,2250.5,2250.1,7.39236344]
[1625099908776,0.00753009,2250.5,2250.3,5.01]
[1625099908976,0.00753009,2250.5,2250.2,5.01]
[1625099909323,0.00753009,2250.5,2250.1,2.38236344]
[1625099909422,6.67273009,2250.5,2250.1,2.38236344]
[1625099909930,6.67273009,2250.5,2250.2,4.37183255]
[1625099910028,0.00753009,2250.5,2250.2,4.46286821]
[1625099910181,0.00753009,2250.5,2250.4,5.01]
[1625099910277,0.00753009,2250.5,2250.4,9.54415011]
[1625099910479,0.00753009,2250.5,2250.4,5.01]
[1625099910676,0.00753009,2250.5,2250.4,5.09]
[1625099910978,0.00753009,2250.5,2250.4,7.47224192]
[1625099913431,0.00753009,2250.5,2250.4,5.01]
[1625099913688,0.00753009,2250.5,2250.4,5.09]
[1625099914488,0.00753009,2250.5,2250.4,5.01]
[1625099916629,0.00753009,2250.5,2250.2,5.15]
[1625099917630,0.00753009,2250.5,2250.2,9.50470659]
[1625099917826,0.00753009,2250.5,2250.2,5.15]
[1625099918383,0.00753009,2250.5,2250.3,5.01]
[1625099918683,0.00753009,2250.5,2250.2,5.15]
[1625099920538,0.00753009,2250.5,2250.1,0.00012152]
[1625099920727,0.1,2250.4,2250.1,0.00012152]
[1625099921229,0.1,2250.4,2250.0,4.91012152]
[1625099921430,0.1,2250.4,2249.9,0.01007001]
[1625099921528,0.00873675,2250.3,2249.9,0.01007001]
[1625099921631,0.08873675,2250.3,2249.9,0.01007001]
[1625099922379,0.08873675,2250.3,2249.5,5.00735585]
[1625099922580,0.2,2250.2,2249.5,5.00735585]
[1625099922698,0.00635192,2249.7,2249.5,5.00735585]
[1625099922888,0.00635192,2249.7,2249.6,4.46408505]
[1625099922987,0.00635192,2249.7,2249.6,4.48567175]
[1625099923088,0.0115303,2249.9,2249.5,2.77339995]
[1625099923789,0.0115303,2249.9,2249.6,0.13135742]
[1625099923891,0.0115303,2249.9,2249.7,5.01]
[1625099923990,0.0115303,2249.9,2249.7,11.67516]
[1625099924092,0.0115303,2249.9,2249.7,11.80651478]
[1625099924193,0.0115303,2249.9,2249.8,5.01]
[1625099924946,0.0115303,2249.9,2249.8,5.09]
[1625099925005,0.0115303,2249.9,2249.8,5.01]
[1625099925905,0.0115303,2249.9,2249.7,0.13135478]
[1625099926307,0.0115303,2249.9,2249.6,2.64216104]
[1625099927752,3.6013303,2249.9,2249.6,0.13138761]
[1625099927951,0.2,2249.8,2249.6,0.13138761]
[1625099928047,0.2,2249.8,2249.4,0.13139988]
[1625099928647,0.2,2249.8,2249.3,0.13142164]
[1625099928748,0.0115303,2249.9,2249.3,0.13142164]
[1625099928846,0.0115303,2249.9,2249.4,4.64567541]
[1625099928948,0.0115303,2249.9,2249.5,4.65856176]
[1625099929263,0.0115303,2249.9,2249.4,4.77705749]
[1625099929346,0.0115303,2249.9,2249.6,5.01]
[1625099929451,0.0115303,2249.9,2249.6,7.52077343]
[1625099929953,0.0115303,2249.9,2249.6,2.51077343]
[1625099932357,6.6785303,2249.9,2249.6,2.51077343]
[1625099932562,0.12,2249.8,2249.6,2.51077343]
[1625099933158,0.02,2249.8,2249.6,2.51077343]
[1625099933259,0.0115303,2249.9,2249.6,2.51077343]
[1625099933657,6.66721,2249.8,2249.6,2.51077343]
[1625099933977,0.0115303,2249.9,2249.6,2.51077343]
[1625099934074,0.0115303,2249.9,2249.7,4.46905066]
[1625099934174,0.0115303,2249.9,2249.6,9.35577541]
[1625099935721,0.0115303,2249.9,2249.6,7.22087343]
[1625099937425,6.6783703,2249.9,2249.6,7.22087343]
[1625099939081,9.9973703,2249.9,2249.6,2.51077343]
[1625099940219,3.3305303,2249.9,2249.6,2.51077343]
[1625099940320,0.0115303,2249.9,2249.6,2.51077343]
[1625099940619,0.0115303,2249.9,2249.7,0.14]
[1625099940957,0.0115303,2249.9,2249.7,5.49648154]
[1625099941057,0.0115303,2249.9,2249.8,10.10992958]
[1625099941156,0.0115303,2249.9,2249.8,12.74084869]
[1625099941350,0.0115303,2249.9,2249.8,7.79131588]
[1625099941450,0.0115303,2249.9,2249.8,9.92621786]
[1625099941553,0.0115303,2249.9,2249.8,18.81157786]
[1625099941750,0.0115303,2249.9,2249.8,18.20555759]
[1625099941851,0.0115303,2249.9,2249.8,13.80157786]
[1625099942150,0.0115303,2249.9,2249.8,18.23364216]
[1625099944823,0.0115303,2249.9,2249.8,19.23364216]
[1625099944924,0.0115303,2249.9,2249.8,23.70724216]
[1625099945267,0.0115303,2249.9,2249.8,19.27517786]
[1625099945366,0.0115303,2249.9,2249.8,23.64522923]
[1625099948361,0.00873675,2250.3,2249.8,23.64522923]
[1625099948562,0.00873675,2250.3,2250.0,5.01]
[1625099948666,0.00873675,2250.3,2250.1,6.66394]
[1625099948762,0.00873675,2250.3,2250.2,0.14]
[1625099948863,0.00873675,2250.3,2250.2,9.58872499]
[1625099949162,0.00873675,2250.3,2250.2,5.15]
[1625099949265,0.00873675,2250.3,2250.2,5.27]
[1625099949769,0.00873675,2250.3,2250.2,9.68435415]
[1625099949968,0.00873675,2250.3,2250.2,12.14567003]
[1625099950467,0.00873675,2250.3,2250.2,18.80966003]
[1625099951016,0.00873675,2250.3,2250.2,14.39530588]
[1625099951819,0.00873675,2250.3,2250.2,16.53020786]
[1625099952361,0.00873675,2250.3,2250.2,20.93639765]
[1625099952463,0.00873675,2250.3,2250.2,25.78619765]
[1625099952565,0.00873675,2250.3,2250.2,26.78619765]
[1625099952763,0.00873675,2250.3,2250.2,22.38000786]
[1625099953063,0.00873675,2250.3,2250.2,20.24510588]
[1625099953764,0.00873675,2250.3,2250.2,13.58111588]
[1625099953862,0.00873675,2250.3,2250.2,7.73131588]
[1625099954407,0.00873675,2250.3,2250.2,7.61131588]
[1625099956264,0.00873675,2250.3,2250.2,2.60131588]
[1625099957624,0.00790029,2250.9,2250.2,2.60131588]
[1625099957625,3.33209,2251.3,2250.4,21.15]
[1625099957783,1.99912655,2252.0,2250.8,0.29482066]
[1625099957879,0.95398724,2251.9,2251.8,20.0]
[1625099957977,0.95398724,2251.9,2251.8,28.40053626]
[1625099958072,1.25664539,2252.1,2251.8,28.54053626]
[1625099958073,0.7596454,2252.1,2251.8,28.54053626]
[1625099958173,3.01594894,2252.6,2252.0,20.0]
[1625099958275,0.2,2252.9,2252.3,23.29]
[1625099958472,0.2,2252.9,2252.6,3.29]
[1625099958581,0.2,2252.9,2252.7,0.47823626]
[1625099958675,0.2,2252.9,2252.8,6.65655]
[1625099958866,0.2,2252.9,2252.8,16.50563835]
[1625099958950,9.9346,2254.3,2252.8,16.50563835]
[1625099959047,19.9155,2254.3,2252.8,16.68563835]
[1625099959149,19.9155,2254.3,2252.8,17.14177483]
[1625099959250,19.9155,2254.3,2253.2,4.96202058]
[1625099959353,19.9155,2254.3,2253.3,0.47823626]
[1625099959447,19.9155,2254.3,2253.3,8.81079145]
[1625099959550,19.9155,2254.3,2253.3,8.95079145]
[1625099960153,0.4,2253.9,2253.3,8.95079145]
[1625099960255,0.4,2253.9,2253.3,19.84431954]
[1625099960359,0.4,2253.9,2253.3,23.13431954]
[1625099960453,0.4,2253.9,2253.3,23.21431954]
[1625099960653,1.72265132,2253.4,2253.3,23.21431954]
[1625099960753,1.72265132,2253.4,2253.3,18.20431954]
[1625099960856,0.4,2253.9,2253.3,13.38846435]
[1625099960954,0.4,2253.9,2253.4,4.35417831]
[1625099961082,0.4,2253.9,2253.5,0.47823626]
[1625099961283,0.4,2253.9,2253.6,5.2710521]
[1625099961383,0.4,2253.9,2253.7,0.47823626]
[1625099961541,1.944,2254.7,2253.9,4.82315826]
[1625099961639,1.944,2254.7,2254.0,0.47823626]
[1625099961731,7.25,2254.9,2254.1,0.14]
[1625099961835,7.25,2254.9,2254.1,5.03124038]
[1625099961933,7.25,2254.9,2254.2,0.47823626]
[1625099962031,7.25,2254.9,2254.3,0.14]
[1625099962133,7.25,2254.9,2254.3,9.88827094]
[1625099962235,7.25,2254.9,2254.4,0.14]
[1625099962332,7.25,2254.9,2254.5,0.14]
[1625099962531,0.4,2254.9,2254.5,0.14]
[1625099964809,0.15,2254.9,2254.5,0.14]
[1625099965917,0.15,2254.9,2254.5,0.17224727]
[1625099967429,0.15,2254.9,2254.5,0.03224727]
[1625099967531,16.93616743,2254.9,2254.2,0.14]
[1625099967809,5.01,2254.7,2254.2,0.14]
[1625099967962,20.19642596,2254.7,2254.2,0.14]
[1625099968068,5.01,2254.6,2254.2,0.14]
[1625099968171,5.18074222,2254.6,2254.2,0.14]
[1625099968266,15.0,2254.5,2254.2,0.14]
[1625099968372,5.01,2254.3,2254.2,0.14]
[1625099968466,9.9608,2254.3,2254.2,0.14]
[1625099968771,4.9508,2254.3,2254.2,0.14]
[1625099969072,0.32892109,2254.9,2254.2,0.14]
[1625099969171,0.15,2254.9,2254.2,0.14]
[1625099969369,0.15,2254.9,2254.3,0.14]
[1625099970424,0.15,2254.9,2254.7,0.00649043]
[1625099972372,0.15,2254.9,2253.0,3.2538]
[1625099972472,0.15,2254.9,2253.3,3.3348876]
[1625099972573,0.15,2254.9,2254.2,0.14]
[1625099974328,0.20764785,2254.7,2253.8,5.01]
[1625099974425,3.57269948,2254.9,2253.8,5.15]
[1625099974605,3.5635,2254.9,2253.8,5.15]
[1625099974705,3.5635,2254.9,2253.9,5.01]
[1625099974802,3.5635,2254.9,2253.8,5.15]
[1625099974903,3.5635,2254.9,2253.8,5.01]
[1625099975004,3.5635,2254.9,2253.9,0.14]
[1625099975208,5.01,2254.7,2253.9,0.14]
[1625099975807,5.17845092,2254.7,2253.9,0.14]
[1625099975905,5.01,2254.7,2253.9,0.14]
[1625099976005,0.0082412,2254.1,2253.9,0.14]
[1625099976107,4.6447412,2254.1,2253.7,0.00643909]
[1625099976410,12.6447412,2254.1,2253.7,0.00643909]
[1625099978257,5.01,2253.9,2253.7,0.00643909]
[1625099978365,13.5,2253.7,2252.9,0.0102238]
[1625099978461,13.51832333,2253.7,2252.9,0.0102238]
[1625099978565,5.279543,2253.6,2252.9,0.0102238]
[1625099978662,5.01,2253.5,2252.9,0.0102238]
[1625099978758,0.00916999,2253.3,2252.9,0.0102238]
[1625099978859,6.66800999,2253.3,2252.9,0.0102238]
[1625099978958,6.85577552,2253.3,2252.9,0.0102238]
[1625099979124,6.86250414,2253.3,2252.9,0.0102238]
[1625099979215,6.85577552,2253.3,2252.9,0.0102238]
[1625099979322,5.01,2253.1,2252.9,0.0102238]
[1625099979519,9.3098,2253.1,2252.9,0.0102238]
[1625099979618,4.2998,2253.1,2252.9,0.0102238]
[1625099979720,5.17,2253.0,2252.9,0.0102238]
[1625099980218,11.82992,2253.0,2252.9,0.0102238]
[1625099980417,19.82992,2253.0,2252.9,0.0102238]
[1625099980620,19.82992,2253.0,2252.5,0.00611576]
[1625099980719,5.01,2252.9,2252.5,0.00611576]
[1625099980824,5.17,2252.9,2252.5,0.00611576]
[1625099980919,5.18134715,2252.9,2252.5,0.00611576]
[1625099981121,5.02134715,2252.9,2252.5,0.00611576]
[1625099981221,0.01134715,2252.9,2252.5,0.00611576]
[1625099982765,0.01134715,2252.9,2252.5,2.6870462]
[1625099982968,0.01134715,2252.9,2252.6,4.70715348]
[1625099983062,0.01134715,2252.9,2252.7,5.01]
[1625099983170,0.01134715,2252.9,2252.8,5.01]
[1625099983264,0.01134715,2252.9,2252.8,5.15]
[1625099983469,0.01134715,2252.9,2252.8,0.14]
[1625099989341,0.01134715,2252.9,2252.5,3.6870462]
[1625099989443,0.01134715,2252.9,2252.6,0.14]
[1625099990483,0.01134715,2252.9,2252.6,2.82093044]
[1625099991481,0.01134715,2252.9,2252.6,9.47837044]
[1625099992087,0.01134715,2252.9,2252.7,4.40105614]
[1625099992188,0.01134715,2252.9,2252.8,5.01]
[1625099992487,0.01134715,2252.9,2252.8,7.81638878]
[1625099992638,0.01134715,2252.9,2252.8,9.46323878]
[1625099993142,0.01134715,2252.9,2252.8,2.80638878]
[1625099993239,0.01134715,2252.9,2252.8,7.15432178]
[1625099993537,0.01134715,2252.9,2252.8,5.31051752]
[1625099993644,0.01134715,2252.9,2252.8,11.96693752]
[1625099993739,0.01134715,2252.9,2252.8,5.31051752]
[1625099993838,0.01134715,2252.9,2252.8,0.14]
[1625099994041,0.01134715,2252.9,2252.8,5.15]
[1625099994238,0.01134715,2252.9,2252.8,0.14]
[1625099994343,0.01134715,2252.9,2252.8,5.15]
[1625099994538,0.01134715,2252.9,2252.8,5.27]
[1625099995084,0.01134715,2252.9,2252.8,5.15]
[1625099995583,0.01134715,2252.9,2252.8,0.14]
[1625099997130,0.01134715,2252.9,2252.8,5.15]
[1625099997231,0.01134715,2252.9,2252.8,9.52165797]
[1625099997380,0.01134715,2252.9,2252.8,7.64489711]
[1625099998983,0.01134715,2252.9,2252.8,2.63489711]
[1625099999185,0.01134715,2252.9,2252.8,0.14]
[1625100004602,0.01134715,2252.9,2252.8,4.51786139]
[1625100004704,0.01134715,2252.9,2252.8,14.15694203]
[1625100004803,0.01134715,2252.9,2252.8,4.99907168]
[1625100005502,0.01134715,2252.9,2252.8,9.36335424]
[1625100006232,0.01134715,2252.9,2252.8,12.65335424]
[1625100006831,0.00643909,2253.9,2253.0,5.01]
[1625100006932,0.00643909,2253.9,2253.2,3.29]
[1625100007181,0.00643909,2253.9,2253.4,5.01]
[1625100007283,0.00643909,2253.9,2253.4,9.54794427]
[1625100007384,0.00643909,2253.9,2253.4,13.07904427]
[1625100007481,0.00643909,2253.9,2253.4,16.42904427]
[1625100007584,0.00643909,2253.9,2253.4,16.57017168]
[1625100008461,0.00643909,2253.9,2253.4,16.51017168]
[1625100008548,0.00643909,2253.9,2253.4,21.1567407]
[1625100009450,0.00643909,2253.9,2253.4,23.01829299]
[1625100009549,0.030877,2253.5,2253.4,22.9987407]
[1625100009651,0.030877,2253.5,2253.4,23.1787407]
[1625100009855,0.0535664,2253.5,2253.4,23.1787407]
[1625100010352,0.0535664,2253.5,2253.4,18.53217168]
[1625100010555,0.0535664,2253.5,2253.4,16.69017168]
[1625100012125,0.0535664,2253.5,2253.4,21.12328962]
[1625100012817,8.287e-05,2253.9,2253.4,21.12328962]
[1625100012971,8.287e-05,2253.9,2253.5,5.01]
[1625100013056,8.287e-05,2253.9,2253.7,3.29]
[1625100013157,8.287e-05,2253.9,2253.7,4.18665484]
[1625100013257,8.287e-05,2253.9,2253.8,5.01]
[1625100013456,8.287e-05,2253.9,2253.8,5.15]
[1625100013610,8.287e-05,2253.9,2253.8,9.73947121]
[1625100013806,8.287e-05,2253.9,2253.8,5.19]
[1625100013909,8.287e-05,2253.9,2253.8,11.84245]
[1625100014212,8.287e-05,2253.9,2253.8,14.34657874]
[1625100015009,8.287e-05,2253.9,2253.8,7.69412874]
[1625100015245,8.287e-05,2253.9,2253.8,5.19]
[1625100015341,8.287e-05,2253.9,2253.8,5.15]
[1625100017043,8.287e-05,2253.9,2253.8,0.14]
[1625100017794,8.287e-05,2253.9,2253.6,5.01]
[1625100017893,8.287e-05,2253.9,2253.7,0.14]
[1625100018596,8.287e-05,2253.9,2253.8,5.01]
[1625100018796,8.287e-05,2253.9,2253.5,0.14]
[1625100018946,0.00727738,2253.7,2253.5,0.14]
[1625100019247,0.00727738,2253.7,2253.5,2.64412874]
[1625100019347,0.00727738,2253.7,2253.6,0.06]